[Event "30th Tamil Nadu IM Norm 2024"]
[Site "Coimbatore"]
[Date "2024.10.03"]
[Round "5.2"]
[White "Dhruva Thota"]
[Black "Tologon tegin, Semetei"]
[Result "1-0"]
[ECO "B04"]
[WhiteElo "2342"]
[BlackElo "2337"]
[Annotator "TA"]
[PlyCount "77"]
[EventDate "2024.09.15"]
[EventCountry "IND"]
[SourceTitle "playchess.com"]
[Source "ChessBase"]
[SourceQuality "1"]
[TimeControl "5400+30"]

{[%evp 10,77,50,-10,54,58,53,28,77,70,72,81,117,105,236,210,183,155,147,148,262,193,174,127,293,292,288,264,279,287,291,308,308,310,344,323,314,290,287,284,348,341,347,348,354,350,318,323,371,371,596,579,613,606,610,453,470,377,377,402,460,458,444,452,420,445,446,454,1430,1403]} 1. e4 {[%emt 0:00:16]} Nf6 {[%emt 0:02:05]} 2. e5 {[%emt 0:01:11]} Nd5 {[%emt 0:00:13]} 3. d4 {[%emt 0:00:22]} d6 {[%emt 0:00:08]} 4. Nf3 {[%emt 0:00:33]} dxe5 {[%emt 0:00:08]} 5. Nxe5 {[%emt 0:00:13]} c6 {[%emt 0:00:04]} 6. c4 {[%emt 0:00:41]} (6. Be2 $14) 6... Nc7 {[%emt 0:01:21]} (6... Nb4 $1 $11) 7. Be3 $14 {[%emt 0:01:12]} Nd7 {[%emt 0:00:27]} 8. Nf3 {[%emt 0:00:27]} Nf6 {[%emt 0:03:04]} (8... g6 $11 {feels stronger.}) 9. h3 $40 {[%emt 0:00:11][%mdl 128] White mounts an attack.} Bf5 {[%emt 0:00:04][%cal Oe7e5]} 10. g4 {[%emt 0:05:59]} Bg6 {[%emt 0:02:12]} 11. Nc3 {[%emt 0:04:06]} h6 {[%emt 0:09:20]} (11... e6 $16) 12. Qb3 {[%emt 0:04:07]} Rb8 {[%emt 0:02:05] [#]} 13. d5 $1 {[%emt 0:01:55][%mdl 512]} e6 {[%emt 0:05:09][%cal Re6d5]} 14. Bxa7 {[%emt 0:04:52] Hoping for dxc6. White is more active.} exd5 {[%emt 0:00:04]} (14... Na6 $16) 15. Bxb8 {[%emt 0:02:43]} Qxb8 {[%emt 0:00:05]} 16. Ne5 {[%emt 0:07:14]} ({White should try} 16. cxd5 $18 Ncxd5 17. Nxd5 Nxd5 18. Bc4 Bb4+ 19. Kf1) 16... Bd6 $2 {[%emt 0:00:09]} (16... Be4 $16 17. Nxe4 (17. Nxc6 Qa8 $18) 17... dxe4) 17. Nxg6 $18 {[%emt 0:01:52]} fxg6 {[%emt 0:00:03]} 18. O-O-O {[%emt 0:03:04]} O-O {[%emt 0:03:38]} 19. cxd5 {[%emt 0:03:35]} Nfxd5 {[%emt 0:00:05]} 20. Nxd5 {[%emt 0:03:22]} Nxd5 {[%emt 0:00:08]} 21. Bc4 {[%emt 0:07:44]} Rxf2 {[%emt 0:00:06]} 22. Bxd5+ {[%emt 0:00:06]} cxd5 {[%emt 0:00:02]} 23. Qxd5+ {[%emt 0:00:58]} Kh7 {[%emt 0:00:01] ( -> ...Qc8+)} 24. Kb1 {[%emt 0:01:07]} (24. Qxd6 {leads to mate.} Qc8+) 24... Be5 {[%emt 0:01:25]} 25. Rd2 {[%emt 0:00:32]} Rf8 {[%emt 0:00:19]} 26. h4 {[%emt 0:06:06]} Bf4 {[%emt 0:08:43]} 27. Rdd1 {[%emt 0:03:49]} Qc8 {[%emt 0:03:49]} 28. Rhg1 {[%emt 0:02:57][%cal Bh1g1,Bg1e1,Be1e7,Be7c7,Bc7d7,Bd7d2,Bd2d5][%mdl 32]} Re8 {[%emt 0:02:28]} 29. Qd7 {[%emt 0:02:49]} Qb8 $2 {[%emt 0:01:39]} (29... b6 {keeps fighting.} 30. Qxc8 Rxc8) 30. Rge1 {[%emt 0:01:56]} Rf8 {[%emt 0:04:38]} 31. Re7 {[%emt 0:01:47][%csl LRb7,LRg7]} Be5 {[%emt 0:00:04]} 32. Qxb7 {[%emt 0:03:24]} Bf6 {[%emt 0:00:03]} 33. Rc7 {[%emt 0:02:12]} Qe8 {[%emt 0:00:59] [#]} 34. g5 $1 {[%emt 0:02:26]} Qe2 {[%emt 0:00:20]} 35. Rcd7 {[%emt 0:03:25]} Be5 {[%emt 0:05:14] ...Rb8 would now be deadly.} 36. gxh6 {[%emt 0:01:55]} Kxh6 {[%emt 0:00:19] Strongly threatening ...Rb8.} 37. R7d2 {[%emt 0:01:04]} Qh5 {[%emt 0:00:30]} 38. Qg2 {[%emt 0:08:26]} Bf6 {[%emt 0:03:05]} (38... Qf5+ $142 39. Ka1 Bf6) 39. Rd5 {[%emt 0:00:44] Weighted Error Value: White=0.20 (precise) /Black=0.41.  Loses game:     	---       	Black=1      Mistake:       	White=1     	Black=5      Inaccurate:     	---       	Black=1      OK:         	White=13    	Black=8      Best:        	White=3     	Black=2} 1-0

[Event "30th Tamil Nadu IM Norm 2024"]
[Site "Coimbatore"]
[Date "2024.10.03"]
[Round "5.3"]
[White "Annageldyev, Orazly"]
[Black "Mohamed Anees M"]
[Result "0-1"]
[ECO "B22"]
[WhiteElo "2105"]
[BlackElo "2347"]
[Annotator "TA"]
[PlyCount "90"]
[EventDate "2024.09.15"]
[EventCountry "IND"]
[SourceTitle "playchess.com"]
[Source "ChessBase"]
[SourceQuality "1"]
[TimeControl "5400+30"]

{[%evp 13,90,1,10,-23,0,-8,0,-36,-39,-36,-33,-44,-41,-52,-52,-56,-61,-69,-53,-71,-87,-75,-69,-123,-106,-87,-92,-86,-84,-95,-87,-87,-34,-73,-57,-94,-91,-100,-59,-118,-78,-139,-86,-144,-91,-281,-281,-247,-210,-308,-220,-291,-262,-351,-352,-319,-267,-283,-271,-259,-264,-402,-461,-29983,-554,-29978,-29979,-29989,-29979,-29980,-29981,-29981,-29982,-29982,-29983,-29982,-29983,-29983,-29983]} 1. e4 {[%emt 0:00:03]} c5 {[%emt 0:00:26]} 2. c3 {[%emt 0:00:20]} d5 {[%emt 0:07:05]} 3. exd5 {[%emt 0:00:44]} Qxd5 {[%emt 0:00:06]} 4. d4 {[%emt 0:00:24]} Nf6 {[%emt 0:01:01]} 5. Nf3 {[%emt 0:00:24]} cxd4 {[%emt 0:00:39]} 6. Qxd4 {[%emt 0:01:12]} Nc6 {[%emt 0:04:05]} 7. Qxd5 {[%emt 0:00:23]} Nxd5 {[%emt 0:00:05]} 8. Na3 {[%emt 0:00:27]} e6 {[%emt 0:04:07]} 9. Nb5 {[%emt 0:02:22]} a6 {[%emt 0:01:12] Dodges c4} 10. Nbd4 {[%emt 0:00:30] The position is equal.} (10. c4 $5 axb5 11. cxd5 exd5 12. Bxb5 $11) 10... Nxd4 {[%emt 0:00:26]} 11. Nxd4 {[%emt 0:00:20]} e5 {[%emt 0:00:51] Repels g3} 12. Nb3 {[%emt 0:01:38]} Be7 {[%emt 0:06:09]} 13. a3 {[%emt 0:02:24]} Be6 {[%emt 0:03:37][%cal Od5c3]} 14. c4 {[%emt 0:03:08]} Nb6 {[%emt 0:00:37][%cal Bd5b6,Bb6a4,Ba4c5,Bc5d3][%mdl 32]} 15. Na5 {[%emt 0:01:41][%cal Og2g3]} O-O-O {[%emt 0:00:31]} 16. Be3 {[%emt 0:01:43]} Na4 {[%emt 0:08:05]} 17. b3 {[%emt 0:10:02]} Nc5 {[%emt 0:01:50]} 18. Be2 {[%emt 0:08:49]} (18. b4 $15 Nd3+ 19. Bxd3 Rxd3 20. c5) 18... Nd3+ {[%emt 0:01:44]} 19. Kf1 {[%emt 0:00:32]} f5 {[%emt 0:01:24] Black is more active.} 20. Bb6 {[%emt 0:07:29]} Rd7 {[%emt 0:03:02]} 21. Bxd3 {[%emt 0:07:22]} Rxd3 {[%emt 0:00:06]} 22. Ke2 {[%emt 0:00:16]} Rd7 {[%emt 0:01:40]} (22... e4 $17 {Threatens to win with ...f4.} 23. Rhd1 Rxd1 24. Rxd1 Bxa3) 23. Rhd1 {[%emt 0:06:20]} Rxd1 {[%emt 0:05:52]} 24. Rxd1 {[%emt 0:04:23]} Bxa3 {[%emt 0:05:08]} 25. c5 {[%emt 0:01:13]} Bb4 {[%emt 0:05:39]} 26. Nc4 {[%emt 0:04:29]} (26. c6 $15) 26... e4 {[%emt 0:06:58]} 27. Ke3 {[%emt 0:01:32]} (27. Ne3 $142) 27... Bc3 {[%emt 0:02:36]} (27... Bxc4 $142 28. bxc4 Rf8) 28. g3 {[%emt 0:05:09]} ({White should play} 28. Ba5 Bxc4 29. Bxc3) 28... g6 {[%emt 0:03:23]} (28... Bxc4 $142 29. bxc4 a5) 29. Rd6 $2 {[%emt 0:04:56] [#] This move loses the game for White.} (29. Ba5 $17 Bxc4 30. Bxc3 Bxb3 31. Rb1) 29... Bxc4 $19 {[%emt 0:00:34]} 30. bxc4 {[%emt 0:00:08][%mdl 4096] Endgame. KRB-KRB} Re8 {[%emt 0:00:11]} 31. h4 {[%emt 0:02:58]} (31. Rd1 $142) 31... Be5 {[%emt 0:00:26]} 32. Rd5 {[%emt 0:01:06]} Bc7 {[%emt 0:00:57]} 33. Bxc7 {[%emt 0:07:24]} Kxc7 {[%emt 0:00:04] KR-KR} 34. h5 {[%emt 0:00:14]} Re6 {[%emt 0:01:24]} (34... gxh5 35. Rxf5 a5 36. Rxh5 $11) 35. Kf4 {[%emt 0:00:41]} Kc6 {[%emt 0:03:10]} (35... gxh5 36. Rxf5 Kc6 37. Ke3 $11) 36. h6 {[%emt 0:05:29]} Re7 {[%emt 0:01:08]} 37. Kg5 {[%emt 0:01:10]} (37. Rd8 $142) 37... Rd7 {[%emt 0:02:56]} 38. Kf6 {[%emt 0:02:35] [#]} (38. Re5 $19) 38... a5 {[%emt 0:00:33]} (38... Rxd5 $142 39. cxd5+ Kxd5 40. Kf7 a5 (40... Kxc5 41. Kg7 $15) 41. Ke7 a4 (41... Kxc5 $2 42. Kf8 $19) 42. Kd7 a3 (42... Kxc5 {gets mated.} 43. Ke7 a3 44. Ke6 a2 45. Kf7 a1=Q 46. Ke7 Qa2 47. Kf6 Kd6 48. g4 fxg4 49. f4 gxf3 50. Kg7 f2 51. Kxh7 Qf7+ 52. Kh8 f1=Q 53. h7 Qf8#) 43. Ke7 Kxc5 (43... a2 44. Kf7 Kxc5 45. g4 f4 46. Kg8 e3 47. Kxh7 e2 48. Kxg6 e1=Q 49. Kf5 a1=Q 50. g5 Qae5+ 51. Kg6 Qe8+ 52. Kf5 Q8e6+ 53. Kxf4 Qxf2#) 44. Kf6 a2 45. Kf7 Kd6 (45... a1=B $2 46. Kg8 $19) (45... a1=Q {is a self mate.} 46. Ke7 Qh8 47. Kf7 Kd6 48. g4 fxg4 49. f3 e3 50. fxg4 e2 51. g5 Kc6 52. Ke7 e1=Q+ 53. Kf7 Qee8#) 46. Kf6 a1=Q+ (46... a1=B+ 47. Kg5 Bd4 48. Kh4 Bxf2 49. Kh3 e3 50. Kg2 Ke5 51. Kf3 Kd4 52. g4 fxg4+ 53. Ke2 Ke4 54. Kd1 Kd3 55. Kc1 e2 56. Kb2 e1=Q 57. Kb3 Qc3+ 58. Ka4 b6 59. Kb5 Qc4#) 47. Kf7 Qh8 (47... Qa2+ 48. Kf8 Qe6 49. g4 Qf6+ 50. Kg8 Ke7 51. gxf5 Qf7+ 52. Kh8 Kf8 53. fxg6 Qg8#) 48. g4 fxg4 49. f3 e3 50. fxg4 e2 51. g5 Kc6 52. Ke7 e1=Q+ 53. Kf7 Qee8#) 39. Rxd7 {[%emt 0:00:28]} Kxd7 {[%emt 0:00:04] KP-KP. Black mates.} 40. Kg7 {[%emt 0:00:11]} a4 {[%emt 0:00:50]} 41. Kxh7 {[%emt 0:00:07]} a3 {[%emt 0:00:03]} 42. Kg8 {[%emt 0:01:19]} a2 {[%emt 0:00:05]} 43. h7 {[%emt 0:00:11]} a1=Q {[%emt 0:00:05]} 44. h8=Q {[%emt 0:00:23]} Qxh8+ {[%emt 0:00:05]} 45. Kxh8 {[%emt 0:00:09]} g5 {[%emt 0:00:03] Weighted Error Value: White=0.65/Black=0.29 (precise) .  Loses game:     	White=1     	---        Mistake:       	White=7     	Black=4      Inaccurate:     	White=6     	Black=2      OK:         	White=5     	Black=13     Best:        	White=2     	Black=3} 0-1

[Event "30th Tamil Nadu IM Norm 2024"]
[Site "Coimbatore"]
[Date "2024.10.03"]
[Round "5.4"]
[White "Manik, Mikulas"]
[Black "Podolchenko, Evgeniy"]
[Result "1/2-1/2"]
[ECO "B13"]
[WhiteElo "2316"]
[BlackElo "2338"]
[Annotator "RC"]
[PlyCount "24"]
[EventDate "2024.09.15"]
[EventCountry "IND"]
[SourceTitle "playchess.com"]
[Source "ChessBase"]
[SourceQuality "1"]
[TimeControl "5400+30"]

1. e4 {[%emt 0:02:14]} c6 {[%emt 0:00:03]} 2. d4 {[%emt 0:00:38]} d5 {[%emt 0:00:02]} 3. exd5 {[%emt 0:00:08]} cxd5 {[%emt 0:00:04]} 4. Bd3 {[%emt 0:00:10]} Nc6 {[%emt 0:00:04]} 5. c3 {[%emt 0:00:09]} Nf6 {[%emt 0:00:05]} 6. Bf4 {[%emt 0:00:25]} Bg4 {[%emt 0:00:06]} 7. Qb3 {[%emt 0:00:06]} Na5 {[%emt 0:00:06]} 8. Qa4+ {[%emt 0:00:05]} Bd7 {[%emt 0:00:04]} 9. Qd1 {[%emt 0:00:05]} Bg4 {[%emt 0:00:05]} 10. Qa4+ {[%emt 0:00:10]} Bd7 {[%emt 0:00:03]} 11. Qd1 {[%emt 0:00:10]} Bg4 {[%emt 0:00:05]} 12. Qa4+ {[%emt 0:00:06]} Bd7 {[%emt 0:00:43]} 1/2-1/2

[Event "30th Tamil Nadu IM Norm 2024"]
[Site "Coimbatore"]
[Date "2024.10.03"]
[Round "5.5"]
[White "Arnav Maheshwari"]
[Black "Aakash G"]
[Result "1/2-1/2"]
[ECO "D07"]
[WhiteElo "2293"]
[BlackElo "2279"]
[Annotator "TA"]
[PlyCount "45"]
[EventDate "2024.09.15"]
[EventCountry "IND"]
[SourceTitle "playchess.com"]
[Source "ChessBase"]
[SourceQuality "1"]
[TimeControl "5400+30"]

{[%evp 11,45,-14,-14,-6,-17,-28,-29,-36,0,0,15,19,24,25,12,0,0,0,0,0,0,0,0,0,0,0,0,0,46,-25,49,0,49,-33,52,0]} 1. d4 {[%emt 0:01:08]} d5 {[%emt 0:00:07]} 2. c4 {[%emt 0:00:10]} Nc6 {[%emt 0:00:05]} 3. Nf3 {[%emt 0:03:59]} Bg4 {[%emt 0:01:10]} 4. e3 {[%emt 0:02:34]} e5 {[%emt 0:01:36]} 5. dxe5 {[%emt 0:08:29]} dxc4 {[%emt 0:03:58]} 6. Qxd8+ {[%emt 0:00:47]} Rxd8 {[%emt 0:00:06]} 7. Bxc4 {[%emt 0:01:50] [#]} Nxe5 $1 {[%emt 0:00:33]} 8. Bb5+ {[%emt 0:01:45]} (8. Be2 Nd3+) 8... c6 {[%emt 0:01:01]} 9. Be2 {[%emt 0:00:10] Black has an edge.} Bb4+ {[%emt 0:01:49]} (9... Nxf3+ {simplifies} 10. gxf3 Be6 11. Nc3 f5) 10. Bd2 {[%emt 0:03:17]} Bxf3 {[%emt 0:04:07]} 11. gxf3 {[%emt 0:01:02]} Bxd2+ {[%emt 0:00:51]} 12. Nxd2 {[%emt 0:00:10]} Nf6 {[%emt 0:00:08]} 13. O-O-O {[%emt 0:02:22]} Nd3+ {[%emt 0:03:53]} 14. Bxd3 {[%emt 0:00:11]} Rxd3 {[%emt 0:00:04]} 15. Nc4 {[%emt 0:06:51]} Rxd1+ {[%emt 0:01:15]} 16. Rxd1 $11 {[%emt 0:00:35][%mdl 4096] Endgame. Strongly threatening Nd6+. KRN-KRN} Ke7 {[%emt 0:00:09]} 17. Rd3 {[%emt 0:03:45]} Rb8 {[%emt 0:11:41]} 18. Ra3 {[%emt 0:04:27]} a6 $1 {[%emt 0:01:51]} 19. Rb3 {[%emt 0:00:26]} Nd7 {[%emt 0:05:40]} (19... Kd7 $1 $11) 20. Rd3 {[%emt 0:12:57]} (20. Na5 $14) 20... Nf6 {[%emt 0:00:11]} (20... b5 $11 21. Nd2 Rb6) 21. Rb3 {[%emt 0:00:05]} (21. Na5 $1 $14 {was preferrable.}) 21... Nd7 {[%emt 0:00:04]} (21... Kd7 $11) 22. Rd3 {[%emt 0:00:06]} ({White should play} 22. Na5 $14) 22... Nf6 {[%emt 0:00:40]} ({Black should try} 22... b5 $15 23. Nd2 c5) 23. Rb3 {[%emt 0:00:06] Weighted Error Value: White=0.20 (precise) /Black=0.23 (precise) .  Mistake:       	White=4     	Black=4      Inaccurate:     	---       	Black=1      OK:         	White=6     	Black=6      Best:        	White=1     	---        Strong:       	---       	Black=1} (23. Na5 $1 $14) 1/2-1/2

[Event "30th Tamil Nadu IM Norm 2024"]
[Site "Coimbatore"]
[Date "2024.10.03"]
[Round "6.1"]
[White "Bharadia Yash"]
[Black "Aakash G"]
[Result "1-0"]
[ECO "B90"]
[WhiteElo "2415"]
[BlackElo "2279"]
[Annotator "RC"]
[PlyCount "75"]
[EventDate "2024.09.15"]
[EventCountry "IND"]
[SourceTitle "playchess.com"]
[Source "ChessBase"]
[SourceQuality "1"]
[TimeControl "5400+30"]

1. e4 {[%emt 0:00:44]} c5 {[%emt 0:00:07]} 2. Nf3 {[%emt 0:00:04]} d6 {[%emt 0:00:05]} 3. d4 {[%emt 0:01:19]} cxd4 {[%emt 0:00:05]} 4. Nxd4 {[%emt 0:00:03]} Nf6 {[%emt 0:00:08]} 5. Nc3 {[%emt 0:00:02]} a6 {[%emt 0:00:03]} 6. Be3 {[%emt 0:00:05]} e5 {[%emt 0:00:25]} 7. Nb3 {[%emt 0:00:03]} Be7 {[%emt 0:00:12]} 8. f3 {[%emt 0:00:06]} Be6 {[%emt 0:01:32]} 9. Qd2 {[%emt 0:00:06]} h5 {[%emt 0:02:17]} 10. Nd5 {[%emt 0:00:10]} Nxd5 {[%emt 0:00:41]} 11. exd5 {[%emt 0:00:03]} Bf5 {[%emt 0:00:14]} 12. Be2 {[%emt 0:00:03]} Nd7 {[%emt 0:00:33]} 13. O-O {[%emt 0:00:21]} Rc8 {[%emt 0:01:33]} 14. c4 {[%emt 0:02:10]} O-O {[%emt 0:03:39]} 15. Na5 {[%emt 0:00:30]} Qc7 {[%emt 0:00:58]} 16. b4 {[%emt 0:00:18]} Bg6 {[%emt 0:02:41]} 17. c5 {[%emt 0:09:54]} Nb8 {[%emt 0:04:21]} 18. Rac1 {[%emt 0:00:43]} dxc5 {[%emt 0:01:42]} 19. bxc5 {[%emt 0:00:34]} Qd7 {[%emt 0:01:07]} 20. Rfd1 {[%emt 0:02:08]} f5 {[%emt 0:05:28]} 21. Qb2 {[%emt 0:04:31]} f4 {[%emt 0:02:28]} 22. Bf2 {[%emt 0:00:17]} e4 {[%emt 0:05:09]} 23. fxe4 {[%emt 0:03:44]} Bxe4 {[%emt 0:01:02]} 24. Qxb7 {[%emt 0:00:38]} Qe8 {[%emt 0:09:22]} 25. Qb3 {[%emt 0:17:46]} Bd8 {[%emt 0:00:48]} 26. Nc4 {[%emt 0:04:53]} Bxg2 {[%emt 0:04:37]} 27. Kxg2 {[%emt 0:01:38]} Qxe2 {[%emt 0:00:05]} 28. Qf3 {[%emt 0:00:24]} Qxa2 {[%emt 0:05:53]} 29. c6 {[%emt 0:11:39]} Rf6 {[%emt 0:11:49]} 30. Re1 {[%emt 0:17:58]} Bc7 {[%emt 0:05:13]} 31. Kh1 {[%emt 0:02:55]} Qa4 {[%emt 0:10:35]} 32. Bd4 {[%emt 0:01:42]} Rf7 {[%emt 0:00:52]} 33. Rg1 {[%emt 0:01:43]} Rd8 {[%emt 0:03:42]} 34. Bxg7 {[%emt 0:02:31]} Rxg7 {[%emt 0:00:10]} 35. Rxg7+ {[%emt 0:00:06]} Kxg7 {[%emt 0:00:05]} 36. Rg1+ {[%emt 0:00:43]} Kf6 {[%emt 0:02:20]} 37. Qe4 {[%emt 0:00:21]} Qxc4 {[%emt 0:00:38]} 38. Qe6# {[%emt 0:00:06]} 1-0

[Event "30th Tamil Nadu IM Norm 2024"]
[Site "Coimbatore"]
[Date "2024.10.03"]
[Round "6.2"]
[White "Podolchenko, Evgeniy"]
[Black "Arnav Maheshwari"]
[Result "1/2-1/2"]
[ECO "D46"]
[WhiteElo "2338"]
[BlackElo "2293"]
[Annotator "RC"]
[PlyCount "45"]
[EventDate "2024.09.15"]
[EventCountry "IND"]
[SourceTitle "playchess.com"]
[Source "ChessBase"]
[SourceQuality "1"]
[TimeControl "5400+30"]

1. d4 {[%emt 0:00:06]} Nf6 {[%emt 0:01:34]} 2. c4 {[%emt 0:00:03]} c6 {[%emt 0:00:09]} 3. Nc3 {[%emt 0:00:05]} d5 {[%emt 0:00:07]} 4. Nf3 {[%emt 0:00:06]} e6 {[%emt 0:00:09]} 5. e3 {[%emt 0:00:04]} Nbd7 {[%emt 0:00:09]} 6. Qc2 {[%emt 0:00:08]} Bd6 {[%emt 0:00:11]} 7. Bd3 {[%emt 0:00:09]} O-O {[%emt 0:00:30]} 8. O-O {[%emt 0:00:07]} dxc4 {[%emt 0:01:04]} 9. Bxc4 {[%emt 0:00:04]} b5 {[%emt 0:00:10]} 10. Be2 {[%emt 0:00:07]} a6 {[%emt 0:07:17]} 11. e4 {[%emt 0:01:19]} e5 {[%emt 0:01:31]} 12. Bg5 {[%emt 0:08:43]} h6 {[%emt 0:21:59]} 13. Bh4 {[%emt 0:00:47]} exd4 {[%emt 0:00:55]} 14. Nxd4 {[%emt 0:00:43]} Qc7 {[%emt 0:01:21]} 15. Nf5 {[%emt 0:40:04]} Bxh2+ {[%emt 0:06:52]} 16. Kh1 {[%emt 0:00:01]} Be5 {[%emt 0:01:39]} 17. f4 {[%emt 0:03:40]} Bxf4 {[%emt 0:04:12]} 18. Rxf4 {[%emt 0:00:32]} Qxf4 {[%emt 0:00:31]} 19. Bg3 {[%emt 0:00:20]} Qg5 {[%emt 0:00:23]} 20. Bh4 {[%emt 0:02:26]} Qf4 {[%emt 0:00:15]} 21. Bg3 {[%emt 0:00:27]} Qg5 {[%emt 0:00:08]} 22. Bh4 {[%emt 0:00:06]} Qf4 {[%emt 0:00:30]} 23. Bg3 1/2-1/2

[Event "30th Tamil Nadu IM Norm 2024"]
[Site "Coimbatore"]
[Date "2024.10.03"]
[Round "6.3"]
[White "Mohamed Anees M"]
[Black "Manik, Mikulas"]
[Result "1-0"]
[ECO "A01"]
[WhiteElo "2347"]
[BlackElo "2316"]
[Annotator "RC"]
[PlyCount "83"]
[EventDate "2024.09.15"]
[EventCountry "IND"]
[SourceTitle "playchess.com"]
[Source "ChessBase"]
[SourceQuality "1"]
[TimeControl "5400+30"]

1. b3 {[%emt 0:00:18]} e5 {[%emt 0:00:02]} 2. Bb2 {[%emt 0:00:07]} Nc6 {[%emt 0:00:03]} 3. Nf3 {[%emt 0:00:07]} e4 {[%emt 0:01:55]} 4. Nd4 {[%emt 0:00:05]} Nf6 {[%emt 0:02:19]} 5. e3 {[%emt 0:00:06]} d5 {[%emt 0:01:31]} 6. Nxc6 {[%emt 0:00:14]} bxc6 {[%emt 0:00:23]} 7. d3 {[%emt 0:00:06]} Bd6 {[%emt 0:04:57]} 8. Nd2 {[%emt 0:05:37]} O-O {[%emt 0:02:39]} 9. dxe4 {[%emt 0:03:40]} Re8 {[%emt 0:08:58]} 10. exd5 {[%emt 0:10:42]} Nxd5 {[%emt 0:00:45]} 11. Qf3 {[%emt 0:19:51]} Qh4 {[%emt 0:02:03]} 12. g3 {[%emt 0:01:46]} Qg5 {[%emt 0:04:05]} 13. Be2 {[%emt 0:08:12]} Bf5 {[%emt 0:15:06]} 14. O-O {[%emt 0:04:48]} Bxc2 {[%emt 0:26:38]} 15. Nc4 {[%emt 0:03:55]} Be4 {[%emt 0:11:41]} 16. Qg4 {[%emt 0:01:23]} Qxg4 {[%emt 0:00:29]} 17. Bxg4 {[%emt 0:00:05]} Nb6 {[%emt 0:01:11]} 18. Nd2 {[%emt 0:10:51]} Bd5 {[%emt 0:01:30]} 19. e4 {[%emt 0:00:37]} Be6 {[%emt 0:01:17]} 20. Bxe6 {[%emt 0:00:33]} Rxe6 {[%emt 0:00:02]} 21. Bc3 {[%emt 0:02:57]} Be5 {[%emt 0:00:22]} 22. Bxe5 {[%emt 0:01:25]} Rxe5 {[%emt 0:00:02]} 23. Rac1 {[%emt 0:01:22]} Rd8 {[%emt 0:01:11]} 24. Rc2 {[%emt 0:02:59]} c5 {[%emt 0:02:00]} 25. Re1 {[%emt 0:03:06]} f5 {[%emt 0:02:58]} 26. f4 {[%emt 0:02:12]} Re7 {[%emt 0:00:24]} 27. e5 {[%emt 0:00:05]} Nd5 {[%emt 0:00:18]} 28. a3 {[%emt 0:02:03]} c6 {[%emt 0:01:05]} 29. Re2 {[%emt 0:00:40]} h6 {[%emt 0:01:00]} 30. Rxc5 {[%emt 0:02:18]} g5 {[%emt 0:01:25]} 31. fxg5 {[%emt 0:00:05]} hxg5 {[%emt 0:00:46]} 32. Rxc6 {[%emt 0:00:19]} g4 {[%emt 0:00:09]} 33. Rd6 {[%emt 0:01:38]} Rxd6 {[%emt 0:00:09]} 34. exd6 {[%emt 0:00:05]} Rxe2 {[%emt 0:00:03]} 35. d7 {[%emt 0:00:30]} Rxd2 {[%emt 0:00:30]} 36. d8=Q+ {[%emt 0:00:00]} Kf7 {[%emt 0:00:00]} 37. Qd6 {[%emt 0:02:12]} Rd4 {[%emt 0:03:39]} 38. b4 {[%emt 0:01:00]} f4 {[%emt 0:00:05]} 39. Qd7+ {[%emt 0:00:38]} Kf6 {[%emt 0:00:40]} 40. gxf4 {[%emt 0:00:25]} Rd3 {[%emt 0:00:18]} 41. Qxg4 {[%emt 0:00:58]} Ne3 {[%emt 0:00:20]} 42. Qg5+ {[%emt 0:00:18]} 1-0

[Event "30th Tamil Nadu IM Norm 2024"]
[Site "Coimbatore"]
[Date "2024.10.03"]
[Round "6.4"]
[White "Tologon tegin, Semetei"]
[Black "Annageldyev, Orazly"]
[Result "1-0"]
[ECO "B07"]
[WhiteElo "2337"]
[BlackElo "2105"]
[Annotator "RC"]
[PlyCount "88"]
[EventDate "2024.09.15"]
[EventCountry "IND"]
[SourceTitle "playchess.com"]
[Source "ChessBase"]
[SourceQuality "1"]
[TimeControl "5400+30"]

1. d4 {[%emt 0:00:02]} Nf6 {[%emt 0:00:04]} 2. Nc3 {[%emt 0:00:04]} g6 {[%emt 0:01:34]} 3. Bf4 {[%emt 0:00:49]} Bg7 {[%emt 0:00:13]} 4. e4 {[%emt 0:00:10]} d6 {[%emt 0:00:11]} 5. Qd2 {[%emt 0:00:07]} O-O {[%emt 0:00:10]} 6. O-O-O {[%emt 0:00:08]} Nc6 {[%emt 0:01:23]} 7. Bh6 {[%emt 0:04:44]} e5 {[%emt 0:05:29]} 8. Bxg7 {[%emt 0:00:13]} Kxg7 {[%emt 0:00:13]} 9. dxe5 {[%emt 0:05:46]} dxe5 {[%emt 0:04:24]} 10. Qe3 {[%emt 0:00:14]} Qe7 {[%emt 0:00:53]} 11. Nd5 {[%emt 0:00:40]} Nxd5 {[%emt 0:00:50]} 12. exd5 {[%emt 0:00:03]} Nd8 {[%emt 0:02:28]} 13. Re1 {[%emt 0:11:16]} f6 {[%emt 0:00:30]} 14. f4 {[%emt 0:00:02]} Nf7 {[%emt 0:00:28]} 15. fxe5 {[%emt 0:00:20]} Qxe5 {[%emt 0:00:29]} 16. Qd2 {[%emt 0:00:12]} Qd6 {[%emt 0:01:00]} 17. Bc4 {[%emt 0:01:56]} Bd7 {[%emt 0:01:19]} 18. Ne2 {[%emt 0:00:40]} Ne5 {[%emt 0:04:04]} 19. Bb3 {[%emt 0:00:09]} c6 {[%emt 0:00:48]} 20. Nc3 {[%emt 0:05:45]} cxd5 {[%emt 0:02:40]} 21. Nxd5 {[%emt 0:00:34]} Bc6 {[%emt 0:02:49]} 22. Rd1 {[%emt 0:03:45]} Bxd5 {[%emt 0:05:08]} 23. Bxd5 {[%emt 0:00:03]} Qc7 {[%emt 0:01:20]} 24. Qb4 {[%emt 0:01:41]} Rac8 {[%emt 0:00:48]} 25. Qxb7 {[%emt 0:00:55]} Qxb7 {[%emt 0:00:20]} 26. Bxb7 {[%emt 0:00:04]} Rc7 {[%emt 0:00:14]} 27. Bd5 {[%emt 0:00:23]} Ng4 {[%emt 0:02:54]} 28. Rd2 {[%emt 0:00:19]} f5 {[%emt 0:00:41]} 29. c4 {[%emt 0:01:14]} Ne3 {[%emt 0:05:58]} 30. b3 {[%emt 0:00:05]} Rd8 {[%emt 0:02:57]} 31. Bf3 {[%emt 0:00:23]} Rxd2 {[%emt 0:00:58]} 32. Kxd2 {[%emt 0:00:07]} f4 {[%emt 0:00:17]} 33. Rc1 {[%emt 0:00:56]} Kf6 {[%emt 0:00:39]} 34. Kd3 {[%emt 0:02:21]} g5 {[%emt 0:01:26]} 35. h3 {[%emt 0:00:03]} Ke5 {[%emt 0:00:58]} 36. c5 {[%emt 0:01:28]} a5 {[%emt 0:02:10]} 37. a3 {[%emt 0:00:16]} h6 {[%emt 0:04:14]} 38. b4 {[%emt 0:00:44]} axb4 {[%emt 0:00:15]} 39. axb4 {[%emt 0:00:03]} Ra7 {[%emt 0:00:18]} 40. b5 {[%emt 0:00:44]} Ra3+ {[%emt 0:00:23]} 41. Rc3 {[%emt 0:00:05]} Ra5 {[%emt 0:00:12]} 42. b6 {[%emt 0:00:04]} Rb5 {[%emt 0:00:41]} 43. b7 {[%emt 0:00:59]} Nd5 {[%emt 0:02:14]} 44. Bxd5 {[%emt 0:00:05]} Kxd5 {[%emt 0:00:13]} 1-0